fUSD/lending_fUSD_20240217
["ID","MTS","AMOUNT","RATE_DAILY","PERIOD"]
[314303035,1708164685193,-343.0,0.00054998,120]
[314303036,1708164685202,-2871.0,0.00054998,120]
[314303037,1708164685214,-507.60582737,0.00055,20]
[314303038,1708164685223,-150.82773791,0.00055,120]
[314303039,1708164685232,-150.0,0.00055,120]
[314303040,1708164685241,-5884.52688663,0.00055,120]
[314303041,1708164685251,-5463.14301188,0.00055,120]
[314303042,1708164685260,-81744.41910139,0.00055,2]
[314303043,1708164685269,-152.63980413,0.00055,120]
[314303044,1708164685279,-24171.83042758,0.00055,14]
[314303045,1708164685288,-11800.0,0.00055,120]
[314303046,1708164685297,-344545.06996156,0.00055,30]
[314303047,1708164685306,-628.65642045,0.00055,120]
[314303048,1708164685316,-165.0,0.00055,120]
[314303049,1708164685325,-25000.0,0.00055,10]
[314303050,1708164685334,-300.0,0.00055,55]
[314303051,1708164685343,-2762.49840726,0.00055,120]
[314303052,1708164685361,-3636.33001622,0.00055,120]
[314303053,1708164685372,-747.4566863,0.00055,120]
[314303054,1708164685386,-3453.12525349,0.00055,120]
[314303055,1708164685398,-2080.0237622,0.00055,120]
[314303056,1708164685409,-788.21293497,0.00055,120]
[314303057,1708164685424,-23550.9979432,0.00055,120]
[314303058,1708164685434,-560.75951822,0.00055,120]
[314303059,1708164685443,-160.0,0.00055,120]
[314303060,1708164685453,-3521.0,0.00055,30]
[314303061,1708164685465,-21720.0,0.00055,120]
[314303062,1708164685475,-780.493,0.00055007,120]
[314303063,1708164685484,-2290.0,0.00055007,120]
[314303064,1708164685493,-1037.0,0.00055007,120]
[314303065,1708164685503,-153.62677801,0.00055011,63]
[314303066,1708164685512,-160.0,0.00055014,120]
[314303067,1708164685521,-200.0,0.00055017,120]
[314303068,1708164685531,-166.99392,0.00055018,4]
[314303069,1708164685540,-500.0,0.00055068,2]
[314303070,1708164685550,-711.3,0.00055068,2]
[314303071,1708164685559,-784.42,0.00055068,120]
[314303072,1708164685568,-962.96,0.00055068,120]
[314303073,1708164685578,-2128.31,0.00055068,120]
[314303074,1708164685587,-3483.63,0.00055068,120]
[314303075,1708164685596,-621.1,0.00055068,120]
[314303076,1708164685606,-2210.94,0.00055068,120]
[314303077,1708164685615,-822.01,0.00055068,14]
[314303078,1708164685624,-4501.31,0.00055068,120]
[314303079,1708164685633,-1288.91,0.00055068,120]
[314303080,1708164685643,-542.68,0.00055068,120]
[314303081,1708164685652,-615.51,0.00055068,120]
[314303082,1708164685661,-1497.63,0.00055068,120]
[314303083,1708164685670,-7291.56,0.00055068,120]
[314303084,1708164685680,-652.98,0.00055068,120]
[314303085,1708164685690,-500.0,0.00055068,120]
[314303086,1708164685700,-802.38,0.00055068,120]
[314303087,1708164685711,-1324.79,0.00055068,120]
[314303088,1708164685721,-785.4,0.00055068,120]
[314303089,1708164685732,-791.76,0.00055068,120]
[314303090,1708164685741,-500.0,0.00055068,120]
[314303091,1708164685750,-1013.43,0.00055068,120]
[314303092,1708164685760,-17904.28,0.00055068,120]
[314303093,1708164685769,-5229.57,0.00055068,120]
[314303094,1708164685778,-713.58,0.00055068,120]
[314303095,1708164685787,-268.8679206,0.00055068,120]
[314303096,1708164685796,-586.76,0.00055068,120]
[314303097,1708164685805,-537.63,0.00055068,120]
[314303098,1708164685814,-150.0,0.00055068,30]
[314303099,1708164685823,-412.14,0.00055068,30]
[314303100,1708164685832,-165.99,0.00055068,30]
[314303101,1708164685842,-156.61,0.00055068,30]
[314303102,1708164685851,-1000.0,0.0005509,60]
[314303103,1708164685860,-205.0,0.00055101,41]
[314303104,1708164685870,-223.021788,0.00055148,106]
[314303105,1708164685879,-500.0,0.00055156,120]
[314303106,1708164685889,-506.526332,0.000552,120]
[314303107,1708164685901,-493.473668,0.000552,120]
[314303108,1708164685910,-203.98922904,0.00055249,15]
[314303109,1708164685919,-241.73047039,0.00055249,15]
[314303110,1708164685928,-63.91690194,0.00055275,120]
[314303111,1708164686186,-119.67767772,0.00055275,120]
[314303112,1708164686196,-160.0,0.00055288,120]
[314303113,1708164686206,-200.0,0.000553,120]
[314303114,1708164686218,-150.0,0.000553,120]
[314303115,1708164686227,-152.266666,0.00055301,120]
[314303116,1708164686236,-182.72,0.00055301,120]
[314303117,1708164686246,-164.448002,0.00055301,120]
[314303118,1708164686256,-138.42395195,0.00055301,120]
[314303119,1708164686269,-26.02404805,0.00055301,120]
[314303120,1708164686279,-152.266667,0.00055301,120]
[314303121,1708164686289,-172.568889,0.00055301,120]
[314303122,1708164686298,-159.879998,0.00055301,120]
[314303123,1708164686307,-164.448,0.00055301,120]
[314303124,1708164686316,-152.266666,0.00055301,120]
[314303125,1708164686325,-70.57758671,0.00055301,120]
[314303126,1708164686336,-112.14241329,0.00055301,120]
[314303127,1708164686345,-152.266667,0.00055301,120]
[314303128,1708164686354,-172.568889,0.00055301,120]
[314303129,1708164686364,-162.925333,0.00055301,120]
[314303130,1708164686373,-158.23203844,0.00055311,120]
[314303131,1708164686382,-197.95505714,0.00055342,2]
[314303132,1708164686392,-70.04810132,0.00055342,2]
[314303133,1708164686404,-308.18074838,0.00055342,2]
[314303134,1708164686532,-153.0,0.00039877,2]
[314303135,1708164686541,-188.30299998,0.00052602,60]
[314303136,1708164686553,-843.42700002,0.00052602,60]
[314303137,1708164686565,-1031.73,0.00052876,60]
[314303138,1708164686574,-1031.73,0.0005315,60]
[314303139,1708164686583,-1031.73,0.00053424,60]
[314303140,1708164686592,-1031.73,0.00053698,60]
[314303141,1708164686601,-216.35505978,0.00055342,2]
[314303142,1708164686613,-116.71609052,0.00055342,2]
[314303143,1708164686623,-784.42,0.00055342,120]
[314303144,1708164686632,-962.96,0.00055342,120]
[314303145,1708164686641,-2128.31,0.00055342,120]
[314303146,1708164686651,-3483.63,0.00055342,120]
[314303147,1708164686660,-621.1,0.00055342,120]
[314303148,1708164686670,-2210.94,0.00055342,120]
[314303149,1708164686679,-822.01,0.00055342,14]
[314303150,1708164686688,-1067.19379484,0.00055342,120]
[314303151,1708164686726,-1031.73,0.00053972,60]
[314303152,1708164686735,-3434.11620516,0.00055342,120]
[314303153,1708164686744,-1288.91,0.00055342,120]
[314303154,1708164686754,-542.68,0.00055342,120]
[314303155,1708164686765,-615.51,0.00055342,120]
[314303156,1708164686774,-1497.63,0.00055342,120]
[314303157,1708164686784,-7291.56,0.00055342,120]
[314303158,1708164686793,-652.98,0.00055342,120]
[314303159,1708164686802,-527.07064264,0.00055342,120]
[314303160,1708164686812,-802.38,0.00055342,120]
[314303161,1708164686822,-1324.79,0.00055342,120]
[314303162,1708164686831,-785.4,0.00055342,120]
[314303163,1708164686841,-791.76,0.00055342,120]
[314303164,1708164686851,-500.0,0.00055342,120]
[314303165,1708164686861,-1013.43,0.00055342,120]
[314303166,1708164686870,-17904.28,0.00055342,120]
[314303167,1708164686879,-5229.57,0.00055342,120]
[314303168,1708164686890,-713.58,0.00055342,120]
[314303169,1708164686900,-586.76,0.00055342,120]
[314303170,1708164686909,-537.63,0.00055342,120]
[314303171,1708164686919,-166.05101382,0.00055347,120]
[314303172,1708164686928,-188.0,0.00055395,120]
[314303173,1708164686937,-10063.86962714,0.000554,80]
[314303174,1708164686946,-166.05101382,0.00055401,120]
[314303175,1708164686955,-223.021788,0.00055448,106]
[314303176,1708164686966,-166.05101387,0.00055455,120]
[314303177,1708164686977,-152.49751534,0.00055491,60]
[314303178,1708164686986,-500.0,0.00055517,120]
[314303179,1708164686995,-5601.272286,0.000556,103]
[314303180,1708164687005,-200.0,0.000556,34]
[314303181,1708164687014,-200.0,0.000556,34]
[314303182,1708164687023,-150.0,0.000556,34]
[314303183,1708164687032,-160.0,0.000556,120]
[314303184,1708164687041,-200.0,0.000556,2]
[314303185,1708164687050,-274.716079,0.000556,32]
[314303186,1708164687059,-1312.8105374,0.000556,32]
[314303187,1708164687069,-525.7672,0.000556,30]
[314303188,1708164687078,-150.24624587,0.00055616,60]
[314303189,1708164687086,-462.1778015,0.00055616,60]
[314303190,1708164687096,-531.27036329,0.00055616,60]
[314303191,1708164687105,-1747.42156194,0.00055616,60]
[314303192,1708164687115,-417.72984749,0.00055616,60]
[314303193,1708164687125,-711.38,0.00055616,2]
[314303194,1708164687134,-3480.9,0.00055616,7]
[314303195,1708164687143,-784.53254575,0.00055616,120]
[314303196,1708164687153,-963.12614785,0.00055616,120]
[314303197,1708164687163,-2128.41465799,0.00055616,120]
[314303198,1708164687172,-3483.64952522,0.00055616,120]
[314303199,1708164687181,-151.0,0.00055616,120]
[314303200,1708164687190,-621.15542335,0.00055616,120]
[314303201,1708164687199,-672.23729691,0.00055616,120]
[314303202,1708164687213,-276.9400013,0.00055616,120]
[314303203,1708164948625,550.0,0.00025,3]
[314303205,1708165556999,-155.0,0.00026998,2]
[314303206,1708165557026,-1047.79729017,0.00026999,2]
[314303207,1708165557054,-600.0,0.00027,3]
[314303208,1708165578322,899.0,0.00026,11]
[314303212,1708165831834,-650.0,0.00029,3]
[314303213,1708165831845,-700.0,0.00031,3]
[314303214,1708165831854,-400.0,0.00032899,3]
[314303215,1708165831865,-7320.6775,0.000329,2]
[314303216,1708165831877,-160.93113565,0.000329,2]
[314303217,1708165831888,-750.0,0.00033,3]
[314303218,1708165831898,-369.61288666,0.00035,3]
[314303219,1708165831912,-430.38711334,0.00035,3]
[314303220,1708165831921,-135.94421035,0.00035352,3]
[314303221,1708165831933,-424.05578965,0.00035352,3]
[314303222,1708165831942,-2338.0,0.000357,2]
[314303223,1708165831951,-17.37500101,0.00037,3]
[314303224,1708165831972,-832.62499899,0.00037,3]
[314303225,1708165831981,-2618.16690859,0.00037,2]
[314303226,1708165831993,-119.54309141,0.00037,2]
[314303227,1708165832002,-198.0,0.00037251,2]
[314303228,1708165832011,-39.04839354,0.00037251,2]
[314303229,1708165832119,-460.94160646,0.00037251,2]
[314303230,1708165832131,-39.04839354,0.00037988,3]
[314303231,1708165832145,-544.95160646,0.00037988,3]
[314303232,1708165832155,-377.15,0.00038656,15]
[314303233,1708165832166,-2000.0,0.00038951,2]
[314303234,1708165832175,-155.0,0.00038999,2]
[314303235,1708165832188,-900.0,0.00039,3]
[314303236,1708165832197,-200.0,0.0003904,2]
[314303237,1708165832206,-250.0,0.00039159,111]
[314303238,1708165832216,-152.69,0.00039204,2]
[314303239,1708165832226,-166.5,0.0003932,2]
[314303240,1708165832236,-369.42,0.00039773,2]
[314303241,1708165832245,-300.0,0.00039894,2]
[314303242,1708165832254,-214.62,0.000399,2]
[314303243,1708165832263,-206.0,0.00040487,10]
[314303244,1708165832274,-621.90616497,0.000405,4]
[314303245,1708165832283,-1000.0,0.000406,15]
[314303246,1708165832293,-150908.2421,0.00040849,2]
[314303247,1708165832302,-252.7592,0.00040849,2]
[314303248,1708165832311,-418.5507,0.00040849,2]
[314303249,1708165832320,-7152.7448,0.00040891,2]
[314303250,1708165832330,-207.225,0.00040891,2]
[314303251,1708165832338,-283.5359,0.00040891,2]
[314303252,1708165832347,-1000.0,0.000409,15]
[314303253,1708165832356,-155.08301787,0.00040908,2]
[314303254,1708165832366,-8788.42825391,0.00040908,120]
[314303255,1708165832375,-150.0,0.00040908,119]
[314303256,1708165832384,-151.0,0.00040908,30]
[314303257,1708165832394,-1741.688955,0.00040908,30]
[314303258,1708165832403,-333.0,0.00040908,2]
[314303259,1708165832414,-666.0,0.00040908,2]
[314303260,1708165832424,-792.0,0.00040908,2]
[314303261,1708165832434,-7537.01757032,0.00040908,30]
[314303262,1708165832444,-1137.37989133,0.00040908,2]
[314303263,1708165832454,-310.40162852,0.00040923,4]
[314303264,1708165832464,-34622.52932427,0.00040949,13]
[314303265,1708165832474,-4760.59778209,0.00040949,13]
[314303266,1708165832483,-4783.78757483,0.00040949,13]
[314303267,1708165832493,-40968.09158409,0.00040991,13]
[314303268,1708165832502,-950.0,0.00041,3]
[314303269,1708165832511,-1119.17219481,0.00041,42]
[314303270,1708165832521,-193.1841676,0.00041095,7]
[314303271,1708165832530,-200.09080819,0.00041095,7]
[314303272,1708165832539,-286.7007666,0.00041095,7]
[314303273,1708165832548,-151.34429885,0.00041095,7]
[314303274,1708165832558,-151.09,0.00041195,2]
[314303275,1708165832567,-1000.0,0.000412,15]
[314303276,1708165832576,-300.0,0.00041264,2]
[314303277,1708165832586,-150.0,0.00041465,7]
[314303278,1708165832595,-150.0,0.00041465,7]
[314303279,1708165832604,-150.0,0.00041465,7]
[314303280,1708165832613,-1000.0,0.000415,15]
[314303281,1708165832623,-152.23,0.000418,4]
[314303282,1708165832632,-152.23,0.000418,4]
[314303283,1708165832642,-152.23,0.000418,4]
[314303284,1708165832651,-152.23,0.000418,4]
[314303285,1708165832661,-152.23,0.000418,4]
[314303286,1708165832670,-152.23,0.000418,4]
[314303287,1708165832680,-150.0,0.00041835,7]
[314303288,1708165832689,-444.0,0.00041908,2]
[314303289,1708165832698,-555.0,0.00041908,2]
[314303290,1708165832708,-777.0,0.00041908,2]
[314303291,1708165832717,-888.0,0.00041908,2]
[314303292,1708165832726,-600.0,0.00042,43]
[314303293,1708165832735,-447.52311601,0.00042,4]
[314303294,1708165832745,-369.42,0.00042037,2]
[314303295,1708165832754,-150.0,0.00042205,7]
[314303296,1708165832763,-152.0,0.00042317,3]
[314303297,1708165832773,-377.15,0.00042392,15]
[314303298,1708165832782,-1521.07,0.000424,2]
[314303299,1708165832791,-250.0,0.00042425,2]
[314303300,1708165832800,-2705.0,0.00042516,120]
[314303301,1708165832810,-23900.0,0.00042516,2]
[314303302,1708165832819,-500.0,0.00042516,2]
[314303303,1708165832828,-3715.34,0.00042575,2]
[314303304,1708165832838,-250.0,0.00042575,2]
[314303305,1708165832847,-200.0,0.0004258,2]
[314303306,1708165832856,-150.0,0.00042585,2]
[314303307,1708165832865,-500.0,0.00042588,120]
[314303308,1708165832874,-150.0,0.00042596,2]
[314303309,1708165832883,-1000.0,0.00043,3]
[314303310,1708165832892,-877.67725394,0.00043,44]
[314303311,1708165832901,-154.44790094,0.00043243,30]
[314303312,1708165832911,-206.0,0.00043274,10]
[314303313,1708165832920,-1000.0,0.00043539,2]
[314303314,1708165832929,-4899.999999,0.000437,21]
[314303315,1708165832939,-8973.08618833,0.00043863,11]
[314303316,1708165832948,-163.43,0.00043894,2]
[314303317,1708165832957,-369.42,0.00044301,2]
[314303318,1708165832966,-177.29,0.0004442,2]
[314303319,1708165832975,-4833.78305591,0.00045,17]
[314303320,1708165832984,-404.92800675,0.00045,4]
[314303321,1708165832993,-569.26,0.00045,15]
[314303322,1708165833002,-1050.0,0.00045,3]
[314303323,1708165833011,-169.4451165,0.00045121,30]
[314303324,1708165833021,-152.23,0.000452,5]
[314303325,1708165833030,-152.23,0.000452,5]
[314303326,1708165833039,-152.23,0.000452,5]
[314303327,1708165833048,-152.23,0.000452,5]
[314303328,1708165833057,-152.23,0.000452,5]
[314303329,1708165833066,-152.23,0.000452,5]
[314303330,1708165833075,-151.09,0.00045305,2]
[314303331,1708165833086,-2500.0,0.000459,2]
[314303332,1708165833097,-2000.0,0.00046,2]
[314303333,1708165833106,-198.40170871,0.00046,2]
[314303334,1708165833115,-192.6,0.00046059,120]
[314303335,1708165833124,-206.0,0.00046062,18]
[314303336,1708165833134,-377.15,0.00046128,15]
[314303337,1708165833143,-158.48060799,0.0004619,10]
[314303338,1708165833153,-369.42,0.00046565,2]
[314303339,1708165833163,-177.29,0.00046641,2]
[314303340,1708165833173,-1411.0,0.000467,115]
[314303341,1708165833183,-180.0,0.00046709,2]
[314303342,1708165833195,-152.0,0.00046972,4]
[314303343,1708165833204,-1100.0,0.00047,3]
[314303344,1708165833213,-207.0,0.00047,3]
[314303345,1708165833223,-290.57852164,0.000475,8]
[314303346,1708165833232,-17946.1723767,0.00047532,12]
[314303347,1708165833242,-19999.99,0.00047542,2]
[314303348,1708165833252,-207.0,0.00048,4]
[314303349,1708165833261,-171.38825125,0.000483,2]
[314303350,1708165833271,-353.91,0.000483,2]
[314303351,1708165833281,-1000.0,0.000485,20]
[314303352,1708165833290,-152.23,0.000486,6]
[314303353,1708165833299,-152.23,0.000486,6]
[314303354,1708165833308,-152.23,0.000486,6]
[314303355,1708165833317,-152.23,0.000486,6]
[314303356,1708165833326,-152.23,0.000486,6]
[314303357,1708165833335,-152.23,0.000486,6]
[314303358,1708165833345,-2000.0,0.000488,2]
[314303359,1708165833354,-369.42,0.00048828,2]
[314303360,1708165833364,-206.0,0.0004885,26]
[314303361,1708165833373,-177.29,0.00048862,2]
[314303362,1708165833383,-1861.66346308,0.00048929,4]
[314303363,1708165833393,-1000.0,0.00048981,2]
[314303364,1708165833402,-1150.0,0.00049,3]
[314303365,1708165833412,-207.0,0.00049,5]
[314303366,1708165833422,-167.92100438,0.00049105,14]
[314303367,1708165833431,-304.63628776,0.00049105,21]
[314303368,1708165833440,-508.42818071,0.00049105,5]
[314303369,1708165833449,-1000.0,0.00049115,2]
[314303370,1708165833459,-152.69,0.00049153,2]
[314303371,1708165833468,-89730.8618833,0.00049195,13]
[314303372,1708165833477,-179461.723767,0.00049205,13]
[314303373,1708165833486,-272923.838364,0.00049205,11]
[314303374,1708165833495,-152.62716441,0.00049214,41]
[314303375,1708165833504,-190.2291,0.00049215,2]
[314303376,1708165833514,-482776.6888,0.00049215,2]
[314303377,1708165833524,-1181.2529493,0.00049314,4]
[314303378,1708165833533,-1083.28506613,0.00049315,30]
[314303379,1708165833542,-500.0,0.00049315,60]
[314303380,1708165833551,-532.3847097,0.00049315,60]
[314303381,1708165833561,-528.38126776,0.00049315,60]
[314303382,1708165833570,-285.26405418,0.00049315,60]
[314303383,1708165833579,-500.0,0.00049315,2]
[314303384,1708165833589,-533.30958536,0.00049315,60]
[314303385,1708165833598,-529.97863019,0.00049315,60]
[314303386,1708165833607,-546.23,0.00049315,60]
[314303387,1708165833616,-500.0,0.00049315,60]
[314303388,1708165833626,-500.0,0.00049315,7]
[314303389,1708165833635,-500.0,0.00049315,60]
[314303390,1708165833644,-579.58435612,0.00049315,60]
[314303391,1708165833653,-500.0,0.00049315,60]
[314303392,1708165833662,-685.27,0.00049315,60]
[314303393,1708165833671,-500.0,0.00049315,60]
[314303394,1708165833681,-500.0,0.00049315,60]
[314303395,1708165833690,-500.0,0.00049315,60]
[314303396,1708165833699,-500.0,0.00049315,60]
[314303397,1708165833708,-500.0,0.00049315,60]
[314303398,1708165833717,-500.0,0.00049315,60]
[314303399,1708165833726,-500.0,0.00049315,60]
[314303400,1708165833735,-500.0,0.00049315,60]
[314303401,1708165833744,-500.0,0.00049315,60]
[314303402,1708165833754,-500.0,0.00049315,60]
[314303403,1708165833763,-500.0,0.00049315,60]
[314303404,1708165833772,-500.0,0.00049315,60]
[314303405,1708165833781,-500.0,0.00049315,60]
[314303406,1708165833790,-500.0,0.00049315,60]
[314303407,1708165833800,-500.0,0.00049315,60]
[314303408,1708165833809,-500.0,0.00049315,60]
[314303409,1708165833819,-607.13,0.00049315,60]
[314303410,1708165833830,-500.0,0.00049315,60]
[314303411,1708165833839,-212.90546673,0.00049315,60]
[314303412,1708165833848,-500.0,0.00049315,14]
[314303413,1708165833858,-534.08277317,0.00049315,60]
[314303414,1708165833867,-500.0,0.00049315,60]
[314303415,1708165833877,-500.0,0.00049315,60]
[314303416,1708165833886,-500.0,0.00049315,60]
[314303417,1708165833896,-500.0,0.00049315,60]
[314303418,1708165833905,-500.0,0.00049315,60]
[314303419,1708165833915,-251.6157303,0.00049315,60]
[314303420,1708165833924,-500.0,0.00049315,60]
[314303421,1708165833936,-500.0,0.00049315,60]
[314303422,1708165833945,-911.44,0.00049315,60]
[314303423,1708165833955,-500.0,0.00049315,60]
[314303424,1708165833965,-2238.03,0.00049315,60]
[314303425,1708165834117,-500.0,0.00049315,60]
[314303426,1708165834128,-500.0,0.00049315,60]
[314303427,1708165834137,-500.0,0.00049315,60]
[314303428,1708165834147,-500.0,0.00049315,60]
[314303429,1708165834157,-653.7,0.00049315,60]
[314303430,1708165834167,-500.0,0.00049315,60]
[314303431,1708165834176,-500.0,0.00049315,60]
[314303432,1708165834186,-500.73,0.00049315,60]
[314303433,1708165834199,-500.0,0.00049315,60]
[314303434,1708165834208,-500.0,0.00049315,2]
[314303435,1708165834218,-500.0,0.00049315,60]
[314303436,1708165834228,-500.0,0.00049315,60]
[314303437,1708165834237,-1255.0,0.00049355,2]
[314303438,1708165834247,-1231.0,0.00049355,2]
[314303439,1708165834257,-1949.0,0.00049355,2]
[314303440,1708165834266,-858.0,0.00049355,2]
[314303441,1708165834278,-429.0,0.00049355,2]
[314303442,1708165834289,-276.0,0.00049355,2]
[314303443,1708165834298,-321.0,0.00049355,2]
[314303444,1708165834307,-2871.0,0.00049355,2]
[314303445,1708165834317,-343.0,0.00049355,2]
[314303446,1708165834327,-2468.541,0.00049355,2]
[314303447,1708165834337,-292.1,0.00049355,2]
[314303448,1708165834348,-607.374,0.00049355,2]
[314303449,1708165834357,-150.0,0.0004936,15]
[314303450,1708165834368,-151.09,0.00049415,2]
[314303451,1708165834378,-198.0,0.00049444,2]
[314303452,1708165834388,-68230.959591,0.00049569,11]
[314303453,1708165834398,-500.0,0.00049589,2]
[314303454,1708165834408,-500.0,0.00049589,60]
[314303455,1708165834418,-544.66118887,0.00049589,60]
[314303456,1708165834427,-248.91622311,0.00049589,60]
[314303457,1708165834442,-436.35377689,0.00049589,60]
[314303458,1708165834451,-500.0,0.00049589,60]
[314303459,1708165834461,-500.0,0.00049589,60]
[314303460,1708165834471,-418.15108518,0.00049589,60]
[314303461,1708165834480,-494.30072203,0.00049589,60]
[314303462,1708165834492,-5.69927797,0.00049589,60]
[314303463,1708165834501,-500.0,0.00049589,60]
[314303464,1708165834511,-500.0,0.00049589,60]
[314303465,1708165834521,-500.0,0.00049589,60]
[314303466,1708165834532,-500.0,0.00049589,60]
[314303467,1708165834542,-500.0,0.00049589,60]
[314303468,1708165834553,-500.0,0.00049589,60]
[314303469,1708165834562,-500.0,0.00049589,60]
[314303470,1708165834572,-500.0,0.00049589,60]
[314303471,1708165834582,-500.0,0.00049589,60]
[314303472,1708165834592,-500.0,0.00049589,60]
[314303473,1708165834602,-559.47925884,0.00049589,60]
[314303474,1708165834611,-607.13,0.00049589,60]
[314303475,1708165834621,-500.0,0.00049589,60]
[314303476,1708165834631,-500.0,0.00049589,14]
[314303477,1708165834642,-500.0,0.00049589,60]
[314303478,1708165834651,-500.0,0.00049589,60]
[314303479,1708165834660,-500.0,0.00049589,60]
[314303480,1708165834671,-500.0,0.00049589,60]
[314303481,1708165834680,-535.63430409,0.00049589,60]
[314303482,1708165834689,-500.0,0.00049589,60]
[314303483,1708165834699,-116.21368283,0.00049589,60]
[314303484,1708165834711,-383.78631717,0.00049589,60]
[314303485,1708165834720,-7.49978042,0.00049589,60]
[314303488,1708165837776,-261.6596807,0.00034999,4]
[314303489,1708165837997,-1146.12938478,0.00034999,4]
[314303490,1708165838006,-532.8526136,0.00049315,60]
[314303491,1708165838017,-500.0,0.00049315,60]
[314303492,1708165838026,-708.0,0.00049355,2]
[314303493,1708165838037,-953.0,0.00049355,2]
[314303494,1708165838046,-903.94021958,0.00049589,60]
[314303495,1708165838056,-500.0,0.00049589,60]
[314303496,1708165838065,-2238.03,0.00049589,60]
[314303497,1708165838075,-500.0,0.00049589,60]
[314303498,1708165838084,-466.3805078,0.00049589,60]
[314303499,1708165838093,-500.0,0.00049589,60]
[314303500,1708165838103,-500.0,0.00049589,60]
[314303501,1708165838112,-653.7,0.00049589,60]
[314303502,1708165838121,-500.0,0.00049589,60]
[314303503,1708165838130,-500.0,0.00049589,60]
[314303504,1708165838140,-500.0,0.00049589,60]
[314303505,1708165838149,-500.0,0.00049589,2]
[314303506,1708165838159,-500.0,0.00049589,60]
[314303507,1708165838169,-500.0,0.00049589,60]
[314303509,1708165838178,-508.42818066,0.00049692,5]
[314303511,1708165838187,-1553.2,0.00049829,117]
[314303513,1708165838201,-500.0,0.00049863,2]
[314303515,1708165838211,-685.27,0.00049863,60]
[314303517,1708165838219,-500.0,0.00049863,60]
[314303518,1708165838230,-500.0,0.00049863,60]
[314303519,1708165838239,-242.2,0.00049863,60]
[314303520,1708165838249,-500.0,0.00049863,60]
[314303521,1708165838258,-500.0,0.00049863,60]
[314303522,1708165838268,-500.0,0.00049863,60]
[314303523,1708165838280,-500.0,0.00049863,60]
[314303524,1708165838289,-568.84,0.00049863,60]
[314303525,1708165838299,-500.0,0.00049863,60]
[314303526,1708165838309,-500.0,0.00049863,60]
[314303527,1708165838318,-500.0,0.00049863,60]
[314303528,1708165838327,-500.0,0.00049863,60]
[314303529,1708165838338,-607.13,0.00049863,60]
[314303530,1708165838348,-500.0,0.00049863,60]
[314303531,1708165838357,-500.0,0.00049863,14]
[314303532,1708165838367,-500.0,0.00049863,60]
[314303533,1708165838376,-500.0,0.00049863,60]
[314303534,1708165838385,-628.04023886,0.00049863,60]
[314303535,1708165838395,-500.0,0.00049863,60]
[314303536,1708165838404,-500.0,0.00049863,60]
[314303537,1708165838413,-911.44,0.00049863,60]
[314303538,1708165838423,-500.0,0.00049863,60]
[314303539,1708165838432,-2238.03,0.00049863,60]
[314303540,1708165838441,-500.0,0.00049863,60]
[314303541,1708165838450,-500.0,0.00049863,60]
[314303542,1708165838460,-653.7,0.00049863,60]
[314303543,1708165838469,-500.0,0.00049863,60]
[314303544,1708165838479,-500.0,0.00049863,60]
[314303545,1708165838488,-500.0,0.00049863,2]